fUSD/lending_fUSD_20260115
["ID","MTS","AMOUNT","RATE_DAILY","PERIOD"]
[402085256,1768514080945,-500.0,0.00015894,2]
[402085257,1768514080969,-500.0,0.00015894,2]
[402085258,1768514080995,-500.0,0.00015894,2]
[402085259,1768514081021,-500.0,0.00015894,2]
[402085260,1768514081046,-500.0,0.00015894,2]
[402085261,1768514081070,-500.0,0.00015894,2]
[402085262,1768514081094,-500.0,0.00015894,2]
[402085263,1768514081117,-500.0,0.00015894,2]
[402085264,1768514081139,-500.0,0.00015894,2]
[402085265,1768514081162,-500.0,0.00015894,2]
[402085266,1768514081186,-500.0,0.00015894,2]
[402085267,1768514081209,-500.0,0.00015894,2]
[402085268,1768514081232,-500.0,0.00015894,2]
[402085269,1768514081255,-500.0,0.00015894,2]
[402085270,1768514081279,-500.0,0.00015894,2]
[402085271,1768514081303,-500.0,0.00015894,2]
[402085272,1768514081327,-500.0,0.00015894,2]
[402085273,1768514081351,-500.0,0.00015894,2]
[402085274,1768514081374,-500.0,0.00015894,2]
[402085275,1768514081397,-500.0,0.00015894,2]
[402085276,1768514081421,-500.0,0.00015894,2]
[402085277,1768514081444,-500.0,0.00015894,2]
[402085278,1768514081467,-258.47663212,0.00015894,2]
[402085279,1768514081490,-500.0,0.00015894,2]
[402085280,1768514081514,-500.0,0.00015894,2]
[402085281,1768514081537,-500.0,0.00015894,2]
[402085282,1768514081560,-500.0,0.00015894,2]
[402085283,1768514081583,-500.0,0.00015894,2]
[402085284,1768514081606,-500.0,0.00015894,2]
[402085285,1768514081629,-500.0,0.00015894,2]
[402085286,1768514081653,-500.0,0.00015894,2]
[402085287,1768514081679,-500.0,0.00015894,2]
[402085288,1768514081701,-500.0,0.00015894,2]
[402085289,1768514081724,-500.0,0.00015894,2]
[402085290,1768514081749,-500.0,0.00015894,2]
[402085291,1768514081773,-500.0,0.00015894,2]
[402085292,1768514081796,-500.0,0.00015894,2]
[402085293,1768514081820,-75.58193075,0.00015894,2]
[402085294,1768514177288,-1200.0,0.00015893,2]
[402085295,1768514177322,-250.0,0.00015894,2]
[402085296,1768514177356,-300.0,0.00015894,2]
[402085297,1768514177465,-6500.01,0.00015895,2]
[402085298,1768514177504,-10000.01,0.00015895,2]
[402085299,1768514178578,-10000.01,0.00015895,2]
[402085300,1768514186215,-10000.01,0.00015895,2]
[402085301,1768514186316,-10000.01,0.00015895,2]
[402085302,1768514186446,-10000.01,0.00015895,2]
[402085342,1768514340067,194.12,0.00030137,120]
[402085345,1768514387211,-600.0,0.00015757,2]
[402085346,1768514387242,-2500.0,0.00015777,2]
[402085347,1768514387274,-195.0,0.00015777,2]
[402085348,1768514387308,-600.0,0.00015812,2]
[402085349,1768514387419,-2210.01,0.00015817,2]
[402085350,1768514387524,-690.9214631,0.00015817,2]
[402085351,1768514387557,-1940.5778493,0.00015844,2]
[402085352,1768514387588,-195.0,0.00015844,2]
[402085353,1768514387620,-1200.0,0.00015885,2]
[402085354,1768514387653,-151.0,0.00015886,2]
[402085355,1768514387685,-151.0,0.00015886,2]
[402085356,1768514387718,-151.0,0.00015886,2]
[402085357,1768514387750,-151.0,0.00015886,2]
[402085358,1768514387781,-151.0,0.00015886,2]
[402085359,1768514387818,-151.0,0.00015886,2]
[402085360,1768514387940,-151.0,0.00015886,2]
[402085361,1768514387971,-151.0,0.00015886,2]
[402085362,1768514388002,-151.0,0.00015886,2]
[402085363,1768514388034,-151.0,0.00015886,2]
[402085364,1768514388070,-151.0,0.00015886,2]
[402085365,1768514388101,-151.0,0.00015886,2]
[402085366,1768514388134,-151.0,0.00015886,2]
[402085367,1768514388166,-151.0,0.00015886,2]
[402085368,1768514388199,-151.0,0.00015886,2]
[402085369,1768514388233,-151.0,0.00015886,2]
[402085370,1768514388270,-151.0,0.00015886,2]
[402085371,1768514388304,-151.0,0.00015886,2]
[402085372,1768514388337,-151.0,0.00015886,2]
[402085373,1768514388370,-151.0,0.00015886,2]
[402085374,1768514388404,-500.0,0.00015894,2]
[402085375,1768514388438,-300.0,0.00015894,2]
[402085376,1768514388475,-500.0,0.00015894,2]
[402085377,1768514388512,-500.0,0.00015894,2]
[402085378,1768514388548,-500.0,0.00015894,2]
[402085379,1768514388583,-500.0,0.00015894,2]
[402085380,1768514388786,-500.0,0.00015894,2]
[402085381,1768514388832,-500.0,0.00015894,2]
[402085382,1768514388870,-500.0,0.00015894,2]
[402085383,1768514388912,-500.0,0.00015894,2]
[402085384,1768514388954,-500.0,0.00015894,2]
[402085385,1768514388990,-500.0,0.00015894,2]
[402085386,1768514389024,-500.0,0.00015894,2]
[402085387,1768514389058,-500.0,0.00015894,2]
[402085388,1768514389093,-500.0,0.00015894,2]
[402085389,1768514389126,-500.0,0.00015894,2]
[402085390,1768514390767,-323.01,0.00015894,2]
[402085391,1768514390810,-0.01,0.00015894,2]
[402085392,1768514391044,-365.125069,0.00015678,2]
[402085393,1768514391080,-176.98,0.00015894,2]
[402085394,1768514391117,-500.0,0.00015894,2]
[402085395,1768514391151,-500.0,0.00015894,2]
[402085396,1768514391188,-500.0,0.00015894,2]
[402085397,1768514391226,-500.0,0.00015894,2]
[402085398,1768514391262,-500.0,0.00015894,2]
[402085399,1768514391299,-500.0,0.00015894,2]
[402085400,1768514391336,-500.0,0.00015894,2]
[402085401,1768514391372,-500.0,0.00015894,2]
[402085402,1768514391406,-415.799862,0.00015894,2]
[402085403,1768514391475,-84.200138,0.00015894,2]
[402085404,1768514391508,-500.0,0.00015894,2]
[402085405,1768514391541,-500.0,0.00015894,2]
[402085406,1768514391573,-500.0,0.00015894,2]
[402085407,1768514391606,-500.0,0.00015894,2]
[402085408,1768514391637,-507.82392554,0.00015894,2]
[402085409,1768514391670,-500.0,0.00015894,2]
[402085410,1768514391702,-500.0,0.00015894,2]
[402085411,1768514391734,-500.0,0.00015894,2]
[402085412,1768514391768,-500.0,0.00015894,2]
[402085413,1768514391799,-250.0,0.00015894,2]
[402085414,1768514393556,-92.02406354,0.00015895,2]
[402085415,1768514393577,-315.96187292,0.00015895,2]
[402085416,1768514393718,-10000.01,0.00015895,2]
[402085417,1768514394138,-10000.01,0.00015895,2]
[402085419,1768514400108,-10000.01,0.00015895,2]
[402085420,1768514400266,-10000.01,0.00015895,2]
[402085421,1768514400399,-10000.01,0.00015895,2]
[402085431,1768514506191,3988.55,7.89e-05,2]
[402085432,1768514506353,3988.55,8.305e-05,2]
[402085433,1768514506764,3988.55,8.72e-05,2]
[402085434,1768514506968,3988.55,9.136e-05,2]
[402085435,1768514507196,3988.55,9.551e-05,2]
[402085436,1768514507444,3988.55,9.966e-05,2]
[402085437,1768514507724,3988.55,0.00010381,2]
[402085438,1768514507924,3988.55,0.00010797,2]
[402085439,1768514508133,3988.55,0.00011212,2]
[402085440,1768514508320,3988.55,0.00011627,2]
[402085441,1768514508571,3988.55,0.00012042,2]
[402085442,1768514508820,3988.55,0.00012458,2]
[402085443,1768514508962,3988.55,0.00012873,2]
[402085444,1768514510849,-221.5918402,0.00013288,2]
[402085445,1768514512390,-161.8759404,0.00013288,2]
[402085446,1768514514643,-242.82934068,0.00013288,2]
[402085447,1768514517927,-217.45216286,0.00013288,2]
[402085448,1768514519466,-399.08005654,0.00013288,2]
[402085449,1768514521576,-156.25071586,0.00013288,2]
[402085451,1768514528146,-399.32792084,0.00013288,2]
[402085452,1768514530241,-414.13483868,0.00013288,2]
[402085453,1768514532506,-182.5391889,0.00013288,2]
[402085454,1768514533696,-551.92423901,0.00013288,2]
[402085455,1768514537916,-500.0,0.00013288,2]
[402085456,1768514540279,-228.0,0.00013288,2]
[402085457,1768514541815,-173.72034882,0.00013288,2]
[402085458,1768514546347,-139.82340721,0.00013288,2]
[402085459,1768514546374,-73.59061036,0.00013703,2]
[402085460,1768514548639,-279.07281986,0.00013703,2]
[402085461,1768514550182,-202.0252419,0.00013703,2]
[402085463,1768514553393,-212.5514693,0.00013703,2]
[402085465,1768514556791,-154.82384213,0.00013703,2]
[402085467,1768514559017,-173.41473106,0.00013703,2]
[402085468,1768514561242,-222.19321814,0.00013703,2]
[402085469,1768514565782,-316.99493294,0.00013703,2]
[402085470,1768514568202,-156.21614348,0.00013703,2]
[402085471,1768514570418,-299.20203258,0.00013703,2]
[402085472,1768514575524,-397.99108346,0.00013703,2]
[402085473,1768514578820,-500.0,0.00013703,2]
[402085474,1768514580805,-283.29410064,0.00013703,2]
[402085476,1768514583585,-252.32852918,0.00013703,2]
[402085477,1768514587296,-199.22287407,0.00013703,2]
[402085478,1768514590002,-175.53472895,0.00013703,2]
[402085479,1768514592571,-90.09364195,0.00013703,2]
[402085480,1768514592595,-104.9461995,0.00014048,2]
[402085482,1768514594668,-152.3641915,0.00014048,2]
[402085483,1768514594691,-147.6358085,0.00014119,2]
[402085486,1768514596707,-179.3342065,0.00014119,2]
[402085488,1768514598909,-270.15501241,0.00014119,2]
[402085489,1768514600559,-155.41160736,0.00014119,2]
[402085490,1768514603761,-169.62944504,0.00014119,2]
[402085491,1768514605215,-208.75968596,0.00014119,2]
[402085492,1768514607336,-818.24543962,0.00014119,2]
[402085493,1768514611694,-195.0,0.00014119,2]
[402085494,1768514615602,-151.21241997,0.00014119,2]
[402085495,1768514617124,-283.27081286,0.00014119,2]
[402085496,1768514621230,-404.69367618,0.00014119,2]
[402085497,1768514622786,-398.78758003,0.00014119,2]
[402085498,1768514625748,-300.0,0.00014119,2]
[402085499,1768514628959,-253.39799004,0.00014119,2]
[402085500,1768514631246,-53.01631553,0.00014119,2]
[402085501,1768514631268,-231.6824366,0.00014119,2]
[402085502,1768514634567,-42.7368186,0.00014119,2]
[402085503,1768514634589,-254.25221434,0.00014534,2]
[402085504,1768514636578,-162.03551096,0.00014534,2]
[402085505,1768514638102,-364.91422489,0.00014534,2]
[402085506,1768514639622,-451.31551051,0.00014534,2]
[402085508,1768514644545,-231.82683937,0.00014534,2]
[402085509,1768514649735,-502.4853468,0.00014534,2]
[402085510,1768514652836,-155.85892198,0.00014534,2]
[402085511,1768514654813,-151.54260527,0.00014534,2]
[402085512,1768514656921,-182.25904905,0.00014534,2]
[402085513,1768514658978,-408.69122734,0.00014534,2]
[402085514,1768514662992,-408.65401964,0.00014534,2]
[402085515,1768514664542,-186.26906812,0.00014534,2]
[402085516,1768514666722,-343.46428555,0.00014534,2]
[402085517,1768514668553,-184.98117618,0.00014534,2]
[402085518,1768514668583,-35.52533013,0.00014617,2]
[402085519,1768514671772,-214.47466987,0.00014617,2]
[402085520,1768514671796,-10.49609766,0.00014949,2]
[402085521,1768514673470,-176.3260472,0.00014949,2]
[402085522,1768514675139,-200.10748678,0.00014949,2]
[402085523,1768514677210,-311.5501207,0.00014949,2]
[402085524,1768514678774,-341.14672228,0.00014949,2]
[402085525,1768514682929,-374.67708398,0.00014949,2]
[402085526,1768514686017,-273.75683621,0.00014949,2]
[402085527,1768514687970,-197.99917281,0.00014949,2]
[402085528,1768514690693,-274.31112154,0.00014949,2]
[402085529,1768514696553,-316.56027467,0.00014949,2]
[402085530,1768514698654,-201.24937539,0.00014949,2]
[402085531,1768514700598,-256.10749526,0.00014949,2]
[402085533,1768514704311,-180.60937,0.00014949,2]
[402085534,1768514706135,-342.24115453,0.00014949,2]
[402085537,1768514709116,-169.87450027,0.00014949,2]
[402085543,1768514711932,-320.69241555,0.00014949,2]
[402085579,1768514767372,-40.84472517,0.00014949,2]
[402085580,1768514767405,-300.0,0.00015157,2]
[402085581,1768514767437,-472.25128977,0.00015364,2]
[402085582,1768514767469,-3988.55,0.00015364,2]
[402085583,1768514767501,-186.5186765,0.00015372,2]
[402085584,1768514768639,-23.68061712,0.00015372,2]
[402085585,1768514768708,-300.0,0.00015472,2]
[402085586,1768514768740,-250.0,0.00015754,2]
[402085587,1768514768773,-300.0,0.00015778,2]
[402085588,1768514768805,-300.0,0.00015778,2]
[402085589,1768514768836,-1200.0,0.00015779,2]
[402085590,1768514768866,-300.0,0.00015779,2]
[402085591,1768514768895,-160.0,0.00015779,2]
[402085592,1768514768929,-391.46,0.0001578,2]
[402085593,1768514769378,-3597.09,0.0001578,2]
[402085594,1768514770418,-300.0,0.00015793,2]
[402085595,1768514771079,-9400.01,0.00015794,2]
[402085597,1768514773311,-210.19929361,0.00015695,2]
[402085598,1768514773343,-599.98,0.00015794,2]
[402085599,1768514773374,-2102.67,0.00015794,2]
[402085600,1768514773406,-1973.1,0.00015794,2]
[402085601,1768514773437,-77.12141278,0.00015794,2]
[402085602,1768514773609,-73.86858722,0.00015794,2]
[402085609,1768514802706,373.2464578,0.00030136,120]
[402085621,1768514914656,-4118.16,0.0001515,2]
[402085622,1768514914683,-1763.69,0.0001515,2]
[402085623,1768514920554,1000.0,0.00015179,2]
[402085624,1768514942080,300.0,0.00015693,2]
[402085625,1768514950542,8700.01,0.00015179,2]
[402085626,1768514950569,9147.06,0.00015179,2]
[402085627,1768514968799,684.71611092,0.00015693,2]
[402085628,1768515001450,300.0,0.00015693,2]
[402085629,1768515001483,300.0,0.00015693,2]
[402085630,1768515001525,1200.0,0.00015693,2]
[402085631,1768515002527,1941.61918,0.00015615,2]
[402085633,1768515007639,5573.67470908,0.00015693,2]
[402085634,1768515007669,10000.01,0.00015693,2]
[402085635,1768515007698,10000.01,0.00015693,2]
[402085650,1768515031542,-366.13195705,0.00015247,2]
[402085651,1768515031602,-300.0,0.00015247,2]
[402085652,1768515031615,-922.66736635,0.00015247,2]
[402085653,1768515031624,-88.52440578,0.00015615,2]
[402085654,1768515031661,-537.19894,0.00015615,2]
[402085655,1768515031674,-2422.87567322,0.00015615,2]
[402085656,1768515031684,-7004.02023017,0.00015693,2]
[402085657,1768515031694,-123471.52617754,0.00015694,2]
[402085658,1768515031706,-29631.22796739,0.00015694,2]
[402085659,1768515031718,-22252.25521937,0.00015694,2]
[402085660,1768515031737,-1596.52263188,0.00015694,2]
[402085696,1768515037571,-873.94638018,0.00015694,2]
[402085697,1768515037603,-993.34152341,0.00015694,2]
[402085698,1768515037663,-2569.97254434,0.00015694,2]
[402085699,1768515037674,-984.20333733,0.00015694,2]
[402085700,1768515037685,-817627.00421856,0.00015694,2]
[402085701,1768515037695,-281.0,0.00015694,2]
[402085702,1768515037704,-467.57553443,0.00015793,2]
[402085703,1768515037714,-9999.99,0.00015794,2]
[402085704,1768515037723,-4999.99,0.00015794,2]
[402085705,1768515037732,-338.91,0.00015794,2]
[402085706,1768515037741,-9999.99,0.00015794,2]
[402085707,1768515037750,-999.99,0.00015794,2]
[402085708,1768515037760,-250.0,0.00015795,2]
[402085709,1768515037769,-299.99,0.00015795,2]
[402085710,1768515037779,-150.99,0.00015795,2]
[402085711,1768515037789,-479.79,0.00015795,2]
[402085712,1768515037799,-2044.4439,0.00015795,2]
[402085713,1768515037808,-10678.11,0.00015817,2]
[402085714,1768515037818,-1210.99,0.00015885,2]
[402085715,1768515037827,-200.0,0.00015886,2]
[402085716,1768515037837,-200.0,0.00015886,2]
[402085717,1768515037846,-500.0,0.00015886,2]
[402085718,1768515037858,-500.0,0.00015886,2]
[402085719,1768515037867,-500.0,0.00015886,2]
[402085720,1768515037877,-500.0,0.00015886,2]
[402085721,1768515037887,-500.0,0.00015886,2]
[402085722,1768515037896,-500.0,0.00015886,2]
[402085723,1768515037906,-500.0,0.00015886,2]
[402085724,1768515037915,-500.0,0.00015886,2]
[402085725,1768515037926,-500.0,0.00015886,2]
[402085726,1768515037938,-500.0,0.00015886,2]
[402085727,1768515037947,-500.0,0.00015886,2]
[402085728,1768515037959,-500.0,0.00015886,2]
[402085729,1768515037978,-500.0,0.00015886,2]
[402085730,1768515037991,-500.0,0.00015886,2]
[402085731,1768515038001,-500.0,0.00015886,2]
[402085733,1768515038010,-500.0,0.00015886,2]
[402085735,1768515038019,-500.0,0.00015886,2]
[402085736,1768515038028,-296.45921573,0.00015886,2]
[402085737,1768515038038,-500.0,0.00015886,2]
[402085739,1768515038295,-151.0,0.00015886,2]
[402085740,1768515038304,-151.0,0.00015886,2]
[402085741,1768515038314,-151.0,0.00015886,2]
[402085742,1768515038323,-151.0,0.00015886,2]
[402085744,1768515038332,-151.0,0.00015886,2]
[402085745,1768515038341,-151.0,0.00015886,2]
[402085746,1768515038350,-151.0,0.00015886,2]
[402085747,1768515038359,-151.0,0.00015886,2]
[402085748,1768515038369,-151.0,0.00015886,2]
[402085749,1768515038378,-151.0,0.00015886,2]
[402085750,1768515038389,-200.0,0.00015886,2]
[402085751,1768515038398,-151.0,0.00015886,2]
[402085752,1768515038407,-345.29652479,0.0001589,2]
[402085753,1768515038416,-500.0,0.00015894,2]
[402085754,1768515038426,-205.55180458,0.00015894,2]
[402085755,1768515038435,-500.0,0.00015894,2]
[402085756,1768515038445,-500.0,0.00015894,2]
[402085757,1768515038454,-500.0,0.00015894,2]
[402085758,1768515038464,-500.0,0.00015894,2]
[402085759,1768515038477,-500.0,0.00015894,2]
[402085760,1768515038486,-500.0,0.00015894,2]
[402085761,1768515038495,-409.7,0.00015979,2]
[402085762,1768515038504,-1000.0,0.0001599,2]
[402085763,1768515038514,-151.0,0.00016056,2]
[402085764,1768515038524,-151.0,0.00016066,2]
[402085765,1768515038534,-151.0,0.0001607,2]
[402085766,1768515038543,-151.0,0.00016078,2]
[402085767,1768515038553,-151.0,0.00016078,2]
[402085768,1768515038562,-151.0,0.00016078,2]
[402085769,1768515038572,-151.0,0.0001608,2]
[402085770,1768515038581,-151.0,0.0001608,2]
[402085771,1768515038591,-151.0,0.0001608,2]
[402085772,1768515038600,-151.0,0.00016088,2]
[402085773,1768515038610,-151.0,0.00016088,2]
[402085774,1768515038619,-151.0,0.00016088,2]
[402085775,1768515038628,-500.0,0.00016089,2]
[402085776,1768515038638,-500.0,0.00016089,2]
[402085777,1768515038647,-573.37968592,0.00016089,2]
[402085778,1768515038656,-500.0,0.00016089,2]
[402085779,1768515038666,-500.0,0.00016089,2]
[402085780,1768515038675,-500.0,0.00016089,2]
[402085781,1768515038685,-500.0,0.00016089,2]
[402085782,1768515038694,-500.0,0.00016089,2]
[402085783,1768515038704,-500.0,0.00016089,2]
[402085784,1768515038713,-500.0,0.00016089,2]
[402085785,1768515038723,-500.0,0.00016089,2]
[402085786,1768515038732,-414.08933578,0.00016089,2]
[402085787,1768515038743,-500.0,0.00016089,2]
[402085788,1768515038753,-500.0,0.00016089,2]
[402085789,1768515038762,-500.0,0.00016089,2]
[402085790,1768515038771,-500.0,0.00016089,2]
[402085791,1768515038781,-606.23385599,0.00016089,2]
[402085792,1768515038791,-500.0,0.00016089,2]
[402085793,1768515038800,-500.0,0.00016089,2]
[402085794,1768515038810,-500.0,0.00016089,2]
[402085795,1768515038819,-500.0,0.00016089,2]
[402085796,1768515038829,-500.0,0.00016089,2]
[402085797,1768515038839,-525.03126034,0.00016089,2]
[402085798,1768515038848,-503.22916224,0.00016089,2]
[402085799,1768515038859,-500.0,0.00016089,2]
[402085800,1768515038870,-500.0,0.00016089,2]
[402085801,1768515038880,-500.0,0.00016089,2]
[402085802,1768515038890,-500.0,0.00016089,2]
[402085803,1768515038900,-500.0,0.00016089,2]
[402085804,1768515038910,-500.0,0.00016089,2]
[402085805,1768515038919,-500.0,0.00016089,2]
[402085806,1768515038929,-500.0,0.00016089,2]
[402085807,1768515038939,-566.60097493,0.00016089,2]
[402085808,1768515038948,-500.0,0.00016089,2]
[402085809,1768515038957,-500.0,0.00016089,2]
[402085810,1768515038966,-229.9000892,0.00016089,2]
[402085811,1768515038976,-500.0,0.00016089,2]
[402085812,1768515038985,-500.0,0.00016089,2]
[402085813,1768515038996,-500.0,0.00016089,2]
[402085814,1768515039006,-500.0,0.00016089,2]
[402085815,1768515039015,-500.0,0.00016089,2]
[402085816,1768515039025,-178.26,0.00016089,2]
[402085817,1768515039036,-500.0,0.00016089,2]
[402085818,1768515039045,-500.0,0.00016089,2]
[402085819,1768515039055,-500.0,0.00016089,2]
[402085820,1768515039064,-500.0,0.00016089,2]
[402085821,1768515039075,-500.0,0.00016089,2]
[402085822,1768515039084,-500.0,0.00016089,2]
[402085823,1768515039094,-500.0,0.00016089,2]
[402085824,1768515039104,-546.11438296,0.00016089,2]
[402085825,1768515039113,-500.0,0.00016089,2]
[402085826,1768515039122,-500.0,0.00016089,2]
[402085827,1768515039131,-500.0,0.00016089,2]
[402085828,1768515039140,-500.0,0.00016089,2]
[402085829,1768515039150,-150.0,0.00016102,2]
[402085830,1768515039159,-1000.0,0.00016102,2]
[402085831,1768515039170,-43170.5,0.00016102,2]
[402085832,1768515039179,-246.76,0.00016102,2]
[402085833,1768515039188,-1210.99,0.00016159,2]
[402085834,1768515039199,-6008.23,0.00016355,2]
[402085835,1768515039208,-999.0,0.00016355,3]
[402085836,1768515039218,-555.8,0.00016355,2]
[402085837,1768515039227,-14419.1,0.00016355,2]
[402085838,1768515039237,-1210.99,0.00016433,2]
[402085839,1768515039247,-200.0,0.00016434,2]
[402085840,1768515039257,-500.0,0.00016434,2]
[402085841,1768515039266,-200.0,0.00016434,2]
[402085842,1768515039276,-500.0,0.00016438,2]
[402085843,1768515039285,-500.0,0.00016438,2]
[402085844,1768515039294,-500.0,0.00016438,2]
[402085845,1768515039303,-500.0,0.00016438,2]
[402085846,1768515039313,-500.0,0.00016438,2]
[402085847,1768515039322,-500.0,0.00016438,2]
[402085848,1768515039332,-500.0,0.00016438,2]
[402085849,1768515039342,-500.0,0.00016438,2]
[402085850,1768515039352,-500.0,0.00016438,2]
[402085851,1768515039362,-500.0,0.00016438,2]
[402085852,1768515039371,-500.0,0.00016438,2]
[402085853,1768515039381,-203.67427651,0.00016438,2]
[402085854,1768515039390,-500.0,0.00016438,2]
[402085855,1768515039400,-500.0,0.00016438,2]
[402085856,1768515039410,-500.0,0.00016438,2]
[402085857,1768515039420,-500.0,0.00016438,2]
[402085858,1768515039429,-500.0,0.00016438,2]
[402085859,1768515039439,-500.0,0.00016438,2]
[402085860,1768515039449,-500.0,0.00016438,2]
[402085861,1768515039458,-500.0,0.00016438,2]
[402085862,1768515039468,-500.0,0.00016438,2]
[402085863,1768515039477,-500.0,0.00016438,2]
[402085864,1768515039487,-500.0,0.00016438,2]
[402085866,1768515039496,-500.0,0.00016438,2]
[402085867,1768515039505,-500.0,0.00016438,2]
[402085868,1768515039515,-500.0,0.00016438,2]
[402085869,1768515039524,-500.0,0.00016438,2]
[402085870,1768515039533,-500.0,0.00016438,2]
[402085871,1768515039543,-500.0,0.00016438,2]
[402085872,1768515039552,-500.0,0.00016438,2]
[402085873,1768515039562,-500.0,0.00016438,2]
[402085874,1768515039571,-500.0,0.00016438,2]
[402085875,1768515039580,-500.0,0.00016438,2]
[402085876,1768515039590,-500.0,0.00016438,2]
[402085877,1768515039599,-500.0,0.00016438,2]
[402085878,1768515039609,-500.0,0.00016438,2]
[402085879,1768515039618,-500.0,0.00016438,2]
[402085880,1768515039627,-500.0,0.00016438,2]
[402085881,1768515039637,-500.0,0.00016438,2]
[402085882,1768515039646,-165.55412864,0.00016438,2]
[402085883,1768515039656,-500.0,0.00016438,2]
[402085884,1768515039666,-165.55412864,0.00016438,2]
[402085885,1768515039675,-500.0,0.00016438,2]
[402085886,1768515039685,-500.0,0.00016438,2]
[402085887,1768515039694,-500.0,0.00016438,2]
[402085888,1768515039704,-165.55412864,0.00016438,2]
[402085889,1768515039714,-2500.0,0.00016444,2]
[402085890,1768515039723,-600.0,0.00016444,2]
[402085891,1768515039732,-195.0,0.00016444,2]
[402085892,1768515039741,-500.0,0.00016454,2]
[402085893,1768515039751,-500.0,0.00016454,2]
[402085894,1768515039760,-500.0,0.00016454,2]
[402085895,1768515039770,-500.0,0.00016454,2]
[402085896,1768515039780,-500.0,0.00016454,2]
[402085897,1768515039789,-500.0,0.00016454,2]
[402085898,1768515039798,-500.0,0.00016454,2]
[402085899,1768515039807,-473.32218147,0.00016454,2]
[402085900,1768515039817,-500.0,0.00016454,2]
[402085901,1768515039826,-500.0,0.00016454,2]
[402085902,1768515039835,-500.0,0.00016454,2]
[402085903,1768515039845,-370.79912031,0.00016454,2]
[402085904,1768515039854,-1000.0,0.00016706,2]
[402085905,1768515039863,-1210.99,0.00016707,2]
[402085906,1768515039872,-500.0,0.00016884,2]
[402085907,1768515039882,-500.0,0.00016973,2]
[402085908,1768515039893,-475.81521231,0.00016973,2]
[402085909,1768515039902,-500.0,0.00016973,2]
[402085910,1768515039914,-500.0,0.00016973,2]
[402085911,1768515039923,-185.70785021,0.00016973,2]
[402085912,1768515039933,-1210.99,0.00016981,2]
[402085913,1768515039943,-248.72844434,0.00016982,2]
[402085914,1768515039952,-500.0,0.00016982,2]
[402085915,1768515039962,-200.0,0.00016982,2]
[402085916,1768515039972,-1000.0,0.00017076,2]
[402085917,1768515039982,-2373.02874103,0.00017128,2]
[402085918,1768515039994,-2009.0,0.00017225,2]
[402085919,1768515040005,-1680.0,0.00017249,2]
[402085920,1768515040014,-1210.99,0.00017255,2]
[402085921,1768515040023,-250.0,0.00017262,2]
[402085922,1768515040033,-195.0,0.00017263,2]
[402085923,1768515040042,-195.0,0.00017263,2]
[402085924,1768515040051,-1000.0,0.0001731,2]
[402085925,1768515040061,-2009.0,0.00017357,2]
[402085926,1768515040070,-250.0,0.00017373,2]
[402085928,1768515040079,-2500.0,0.00017373,2]
[402085929,1768515040088,-2009.0,0.00017418,2]
[402085930,1768515040097,-1210.99,0.00017529,2]
[402085931,1768515040106,-500.0,0.0001753,2]
[402085932,1768515040115,-2009.0,0.00017644,2]
[402085933,1768515040123,-2009.0,0.00017668,2]